[Event "*** Titled Tuesday Blitz"]
[Site "Chess.com"]
[Date "2021.03.30"]
[Round "5"]
[White "Srinavasan"]
[Black "jcibarra"]
[Result "0-1"]
[WhiteElo "2959"]
[BlackElo "2848"]
[TimeControl "180+1"]
[EndTime "10:58:50 PDT"]
[Termination "jcibarra won on time"]

1. c4 {[%clk 0:03:00.9]} 1... e5 {[%clk 0:02:56.7]} 2. g3 {[%clk 0:03:00.8]}
2... Nc6 {[%clk 0:02:56.3]} 3. Bg2 {[%clk 0:03:00]} 3... Bc5 {[%clk 0:02:54.5]}
4. Nc3 {[%clk 0:02:58.3]} 4... d6 {[%clk 0:02:52.7]} 5. e3 {[%clk 0:02:56.5]}
5... a6 {[%clk 0:02:52.8]} 6. b3 {[%clk 0:02:52.7]} 6... h5 {[%clk 0:02:46.7]}
7. h4 {[%clk 0:02:52.1]} 7... Bg4 {[%clk 0:02:43.9]} 8. Nge2 {[%clk 0:02:51.3]}
8... Nf6 {[%clk 0:02:37.5]} 9. Bb2 {[%clk 0:02:47.3]} 9... Qd7 {[%clk
0:02:25.8]} 10. d3 {[%clk 0:02:46.1]} 10... Ba7 {[%clk 0:02:22.5]} 11. Qd2
{[%clk 0:02:45.1]} 11... O-O {[%clk 0:02:15.1]} 12. Ne4 {[%clk 0:02:34.8]} 12...
Nxe4 {[%clk 0:02:07.3]} 13. dxe4 {[%clk 0:02:35.7]} 13... b5 {[%clk 0:02:03.1]}
14. Rc1 {[%clk 0:02:34.3]} 14... b4 {[%clk 0:01:54.7]} 15. O-O {[%clk
0:02:24.5]} 15... Bc5 {[%clk 0:01:48.4]} 16. Ra1 {[%clk 0:02:08.4]} 16... Rfb8
{[%clk 0:01:33.1]} 17. Nc1 {[%clk 0:01:48.6]} 17... a5 {[%clk 0:01:19.8]} 18. a4
{[%clk 0:01:47.7]} 18... bxa3 {[%clk 0:01:16.5]} 19. Bxa3 {[%clk 0:01:47.9]}
19... Bxa3 {[%clk 0:01:16]} 20. Rxa3 {[%clk 0:01:48.8]} 20... Rb6 {[%clk
0:01:05.9]} 21. Nd3 {[%clk 0:01:41.4]} 21... Rab8 {[%clk 0:01:03.2]} 22. Qc2
{[%clk 0:01:28.1]} 22... Bh3 {[%clk 0:00:40.4]} 23. Kh2 {[%clk 0:01:20.9]} 23...
Bxg2 {[%clk 0:00:39.2]} 24. Kxg2 {[%clk 0:01:21.8]} 24... Qe6 {[%clk 0:00:34.9]}
25. Ne1 {[%clk 0:00:58.8]} 25... g6 {[%clk 0:00:23.4]} 26. Nf3 {[%clk
0:00:54.5]} 26... Kg7 {[%clk 0:00:19.2]} 27. Rfa1 {[%clk 0:00:53.4]} 27... Qe7
{[%clk 0:00:18.7]} 28. Nd2 {[%clk 0:00:50.5]} 28... Nb4 {[%clk 0:00:17.1]} 29.
Qd1 {[%clk 0:00:49]} 29... Nc6 {[%clk 0:00:17.5]} 30. Nb1 {[%clk 0:00:48.6]}
30... Qe6 {[%clk 0:00:14.8]} 31. Nc3 {[%clk 0:00:48.6]} 31... R6b7 {[%clk
0:00:15.3]} 32. Nb5 {[%clk 0:00:36.4]} 32... Kg8 {[%clk 0:00:12.9]} 33. Qd5
{[%clk 0:00:35.4]} 33... Nd8 {[%clk 0:00:11.2]} 34. Rxa5 {[%clk 0:00:31.9]}
34... c6 {[%clk 0:00:08.2]} 35. Qxe6 {[%clk 0:00:31.3]} 35... Nxe6 {[%clk
0:00:08.8]} 36. Nxd6 {[%clk 0:00:29.1]} 36... Rxb3 {[%clk 0:00:09.4]} 37. Rxe5
{[%clk 0:00:24.9]} 37... Rb2 {[%clk 0:00:08.2]} 38. Rea5 {[%clk 0:00:24]} 38...
Rc2 {[%clk 0:00:07.2]} 39. R5a2 {[%clk 0:00:22.3]} 39... Rbb2 {[%clk 0:00:06.8]}
40. Rxb2 {[%clk 0:00:22.2]} 40... Rxb2 {[%clk 0:00:07.7]} 41. e5 {[%clk
0:00:19.3]} 41... Nc5 {[%clk 0:00:07.2]} 42. Rd1 {[%clk 0:00:19.2]} 42... Rc2
{[%clk 0:00:07]} 43. Kf3 {[%clk 0:00:19.2]} 43... Kf8 {[%clk 0:00:07.4]} 44. Rd4
{[%clk 0:00:18.8]} 44... Ke7 {[%clk 0:00:07.3]} 45. Ne4 {[%clk 0:00:17.3]} 45...
Nb3 {[%clk 0:00:04.6]} 46. Rd3 {[%clk 0:00:15.9]} 46... Nc1 {[%clk 0:00:03.6]}
47. Rd1 {[%clk 0:00:15.5]} 47... Rxc4 {[%clk 0:00:04]} 48. Nd6 {[%clk
0:00:13.2]} 48... Rc2 {[%clk 0:00:04.6]} 49. Nc8+ {[%clk 0:00:12.9]} 49... Ke8
{[%clk 0:00:05.1]} 50. Nb6 {[%clk 0:00:07.7]} 50... Nb3 {[%clk 0:00:05.2]} 51.
Rd3 {[%clk 0:00:05.3]} 51... Nc5 {[%clk 0:00:05.2]} 52. Rd6 {[%clk 0:00:05.5]}
52... Nb3 {[%clk 0:00:03.5]} 53. Nd7 {[%clk 0:00:05.6]} 53... Nd2+ {[%clk
0:00:03.7]} 54. Kf4 {[%clk 0:00:05.3]} 54... Nc4 {[%clk 0:00:03.5]} 55. Nf6+
{[%clk 0:00:04.2]} 55... Kf8 {[%clk 0:00:03.2]} 56. Rd8+ {[%clk 0:00:02.9]}
56... Kg7 {[%clk 0:00:03.7]} 57. Rg8+ {[%clk 0:00:02.9]} 57... Kh6 {[%clk
0:00:04.1]} 58. f3 {[%clk 0:00:03]} 58... Nb6 {[%clk 0:00:03.6]} 59. g4 {[%clk
0:00:02.9]} 59... Rc4+ {[%clk 0:00:02.8]} 60. e4 {[%clk 0:00:02.6]} 60... hxg4
{[%clk 0:00:03.6]} 61. Nxg4+ {[%clk 0:00:02.2]} 61... Kh7 {[%clk 0:00:03.6]} 62.
Nf6+ {[%clk 0:00:03.1]} 62... Kh6 {[%clk 0:00:04.3]} 63. Rf8 {[%clk 0:00:02.4]}
63... Kg7 {[%clk 0:00:04.4]} 64. Rc8 {[%clk 0:00:02.7]} 64... Na4 {[%clk
0:00:03.2]} 65. Rc7 {[%clk 0:00:02.5]} 65... Nc5 {[%clk 0:00:03.1]} 66. Kg4
{[%clk 0:00:02.9]} 66... Ne6 {[%clk 0:00:04]} 67. f4 {[%clk 0:00:02.7]} 67...
Nxc7 {[%clk 0:00:03.7]} 68. h5 {[%clk 0:00:03.2]} 68... Nb5 {[%clk 0:00:04.1]}
69. hxg6 {[%clk 0:00:03.3]} 69... fxg6 {[%clk 0:00:04.5]} 70. Ne8+ {[%clk
0:00:04.2]} 70... Kf7 {[%clk 0:00:04.7]} 71. Nf6 {[%clk 0:00:05]} 71... Ke6
{[%clk 0:00:05]} 72. Nh7 {[%clk 0:00:05.2]} 72... Rc1 {[%clk 0:00:05.5]} 73.
Ng5+ {[%clk 0:00:04.2]} 73... Ke7 {[%clk 0:00:06.1]} 74. f5 {[%clk 0:00:05.1]}
74... Rg1+ {[%clk 0:00:06.6]} 75. Kf4 {[%clk 0:00:05.4]} 75... gxf5 {[%clk
0:00:07]} 76. exf5 {[%clk 0:00:06.3]} 76... Rf1+ {[%clk 0:00:07.7]} 77. Kg4
{[%clk 0:00:05.9]} 77... Nd4 {[%clk 0:00:07.9]} 78. f6+ {[%clk 0:00:06.3]} 78...
Kd7 {[%clk 0:00:08.6]} 79. Ne4 {[%clk 0:00:05.5]} 79... Ne6 {[%clk 0:00:08.4]}
80. Ng3 {[%clk 0:00:04.7]} 80... Re1 {[%clk 0:00:07.9]} 81. Kf5 {[%clk
0:00:04.7]} 81... Nd4+ {[%clk 0:00:08]} 82. Kf4 {[%clk 0:00:04.6]} 82... Ne6+
{[%clk 0:00:08.1]} 83. Kf5 {[%clk 0:00:04.7]} 83... Re3 {[%clk 0:00:08.2]} 84.
Ne4 {[%clk 0:00:03.6]} 84... Nd4+ {[%clk 0:00:07.9]} 85. Kf4 {[%clk 0:00:03.8]}
85... Rf3+ {[%clk 0:00:07.7]} 86. Kg4 {[%clk 0:00:04.3]} 86... Rf1 {[%clk
0:00:07.6]} 87. Nc5+ {[%clk 0:00:04.4]} 87... Kc7 {[%clk 0:00:07.1]} 88. e6
{[%clk 0:00:03.3]} 88... Nxe6 {[%clk 0:00:04.7]} 89. Nxe6+ {[%clk 0:00:04.2]}
89... Kd6 {[%clk 0:00:05.5]} 90. Nf4 {[%clk 0:00:04.6]} 90... Kd7 {[%clk
0:00:04.3]} 91. Kf5 {[%clk 0:00:04.8]} 91... Ke8 {[%clk 0:00:04.7]} 92. Ke5
{[%clk 0:00:04.8]} 92... Kf7 {[%clk 0:00:05]} 93. Nd3 {[%clk 0:00:02.6]} 93...
Rd1 {[%clk 0:00:05.2]} 94. Nf2 {[%clk 0:00:01.1]} 94... Re1+ {[%clk 0:00:04.2]}
95. Kd6 {[%clk 0:00:01.2]} 95... Re6+ {[%clk 0:00:04.7]} 96. Kc5 {[%clk
0:00:01.5]} 96... Kxf6 {[%clk 0:00:05.2]} 97. Nd3 {[%clk 0:00:01.9]} 97... Ke7
{[%clk 0:00:05.5]} 98. Nf4 {[%clk 0:00:02.2]} 98... Rf6 {[%clk 0:00:05]} 99. Ne2
{[%clk 0:00:02.2]} 99... Kd7 {[%clk 0:00:05.4]} 100. Nd4 {[%clk 0:00:02.6]}
100... Kc7 {[%clk 0:00:04.9]} 101. Nb3 {[%clk 0:00:03]} 101... Rf5+ {[%clk
0:00:05.3]} 102. Kc4 {[%clk 0:00:03.1]} 102... Kd6 {[%clk 0:00:06]} 103. Nd4
{[%clk 0:00:03.8]} 103... Rf4 {[%clk 0:00:06.3]} 104. Kc3 {[%clk 0:00:04.7]}
104... Kd5 {[%clk 0:00:06.3]} 105. Nc2 {[%clk 0:00:04.6]} 105... Rc4+ {[%clk
0:00:06.2]} 106. Kd3 {[%clk 0:00:04.6]} 106... Rxc2 {[%clk 0:00:07.1]} 107. Kxc2
{[%clk 0:00:05.5]} 107... Kc4 {[%clk 0:00:07.8]} 0-1

[Event "*** Titled Tuesday Blitz"]
[Site "Chess.com"]
[Date "2021.03.30"]
[Round "6"]
[White "Kostukov_Alex"]
[Black "FontVella8"]
[Result "1-0"]
[WhiteElo "2315"]
[BlackElo "2456"]
[TimeControl "180+1"]
[EndTime "11:00:38 PDT"]
[Termination "Kostukov_Alex won by resignation"]

1. g3 {[%clk 0:03:00.9]} 1... d5 {[%clk 0:02:59.6]} 2. Bg2 {[%clk 0:02:54.9]}
2... c6 {[%clk 0:03:00.1]} 3. d3 {[%clk 0:02:54.5]} 3... Bf5 {[%clk 0:03:00.6]}
4. e4 {[%clk 0:02:54.3]} 4... Bg6 {[%clk 0:02:58.8]} 5. Qe2 {[%clk 0:02:53.9]}
5... e6 {[%clk 0:02:58.1]} 6. Nf3 {[%clk 0:02:51.7]} 6... Nf6 {[%clk 0:02:57.7]}
7. e5 {[%clk 0:02:51.8]} 7... Nfd7 {[%clk 0:02:57.5]} 8. O-O {[%clk 0:02:51.9]}
8... c5 {[%clk 0:02:56.4]} 9. c4 {[%clk 0:02:50.8]} 9... dxc4 {[%clk 0:02:52.8]}
10. dxc4 {[%clk 0:02:51.7]} 10... Qc7 {[%clk 0:02:52.4]} 11. Nc3 {[%clk
0:02:49.3]} 11... a6 {[%clk 0:02:52.6]} 12. Bf4 {[%clk 0:02:46.7]} 12... Nc6
{[%clk 0:02:51.1]} 13. Nd5 {[%clk 0:02:40.1]} 13... exd5 {[%clk 0:02:40.8]} 14.
e6 {[%clk 0:02:39.9]} 14... Nf6 {[%clk 0:02:35.6]} 15. Bxc7 {[%clk 0:02:38.1]}
1-0

[Event "*** Titled Tuesday Blitz"]
[Site "Chess.com"]
[Date "2021.03.30"]
[Round "6"]
[White "MaevskiyNikolay"]
[Black "Caterpiller35"]
[Result "1-0"]
[WhiteElo "2533"]
[BlackElo "2388"]
[TimeControl "180+1"]
[EndTime "11:01:21 PDT"]
[Termination "MaevskiyNikolay won by resignation"]

1. Nf3 {[%clk 0:03:00.9]} 1... Nf6 {[%clk 0:02:59.3]} 2. c4 {[%clk 0:03:00.9]}
2... e6 {[%clk 0:02:56.7]} 3. Nc3 {[%clk 0:03:00.9]} 3... d5 {[%clk 0:02:57]} 4.
e3 {[%clk 0:02:59.5]} 4... c6 {[%clk 0:02:55.1]} 5. b3 {[%clk 0:02:58.7]} 5...
Nbd7 {[%clk 0:02:55.6]} 6. Bb2 {[%clk 0:02:58.5]} 6... Be7 {[%clk 0:02:55.2]} 7.
Qc2 {[%clk 0:02:58]} 7... O-O {[%clk 0:02:54.8]} 8. Be2 {[%clk 0:02:56.9]} 8...
b6 {[%clk 0:02:51.3]} 9. O-O {[%clk 0:02:55.7]} 9... Bb7 {[%clk 0:02:51.1]} 10.
Rfd1 {[%clk 0:02:55.3]} 10... Rc8 {[%clk 0:02:51.2]} 11. Rac1 {[%clk 0:02:53.3]}
11... Qc7 {[%clk 0:02:51.4]} 12. d4 {[%clk 0:02:48.7]} 12... Qb8 {[%clk
0:02:50.1]} 13. Qb1 {[%clk 0:02:47.3]} 13... Rfd8 {[%clk 0:02:45.1]} 14. h3
{[%clk 0:02:46.6]} 14... c5 {[%clk 0:02:45.2]} 15. cxd5 {[%clk 0:02:43.8]} 15...
exd5 {[%clk 0:02:42.4]} 16. Bd3 {[%clk 0:02:42.4]} 16... cxd4 {[%clk 0:02:34.6]}
17. Nxd4 {[%clk 0:02:42]} 17... Nc5 {[%clk 0:02:29.9]} 18. Bf5 {[%clk
0:02:41.3]} 18... Nce4 {[%clk 0:02:21.8]} 19. Bxc8 {[%clk 0:02:39]} 19... Bxc8
{[%clk 0:02:20.3]} 20. Nxe4 {[%clk 0:02:38.1]} 20... Nxe4 {[%clk 0:02:20.2]} 21.
Nc6 {[%clk 0:02:37.6]} 21... Qd6 {[%clk 0:02:14.3]} 22. Nxd8 {[%clk 0:02:37.4]}
22... Qxd8 {[%clk 0:02:14.2]} 23. Qxe4 {[%clk 0:02:37]} 1-0

[Event "*** Titled Tuesday Blitz"]
[Site "Chess.com"]
[Date "2021.03.30"]
[Round "6"]
[White "poneis_malditos"]
[Black "Maddie"]
[Result "1-0"]
[WhiteElo "2285"]
[BlackElo "2061"]
[TimeControl "180+1"]
[EndTime "11:01:31 PDT"]
[Termination "poneis_malditos won by checkmate"]

1. e4 {[%clk 0:03:00.9]} 1... c6 {[%clk 0:02:58.9]} 2. d4 {[%clk 0:03:00.3]}
2... d5 {[%clk 0:02:59.8]} 3. Nd2 {[%clk 0:03:00.8]} 3... dxe4 {[%clk 0:03:00]}
4. Nxe4 {[%clk 0:03:01.7]} 4... Nd7 {[%clk 0:03:00.4]} 5. Nf3 {[%clk 0:03:01]}
5... Ngf6 {[%clk 0:03:00.3]} 6. Nc3 {[%clk 0:03:01.4]} 6... e6 {[%clk
0:02:59.7]} 7. Bg5 {[%clk 0:02:58.4]} 7... Be7 {[%clk 0:03:00.1]} 8. Bd3 {[%clk
0:02:58.5]} 8... O-O {[%clk 0:03:00.5]} 9. Qd2 {[%clk 0:02:59]} 9... Nd5 {[%clk
0:02:59.5]} 10. Ne4 {[%clk 0:02:55.4]} 10... h6 {[%clk 0:02:53]} 11. h4 {[%clk
0:02:53.1]} 11... hxg5 {[%clk 0:02:43.7]} 12. hxg5 {[%clk 0:02:54]} 12... g6
{[%clk 0:02:31.4]} 13. O-O-O {[%clk 0:02:46.8]} 13... Qc7 {[%clk 0:02:24.4]} 14.
Rh4 {[%clk 0:02:34]} 14... N5f6 {[%clk 0:02:14.3]} 15. gxf6 {[%clk 0:02:27.9]}
15... Nxf6 {[%clk 0:02:13.7]} 16. Qh6 {[%clk 0:02:22.3]} 16... Nh5 {[%clk
0:02:07.5]} 17. Rxh5 {[%clk 0:02:22.1]} 17... gxh5 {[%clk 0:02:06.7]} 18. Nf6+
{[%clk 0:02:22]} 18... Bxf6 {[%clk 0:02:02.3]} 19. Qh7# {[%clk 0:02:22.1]} 1-0

[Event "*** Titled Tuesday Blitz"]
[Site "Chess.com"]
[Date "2021.03.30"]
[Round "6"]
[White "Orlov_Oleg"]
[Black "youngKID"]
[Result "0-1"]
[WhiteElo "2592"]
[BlackElo "2746"]
[TimeControl "180+1"]
[EndTime "11:02:00 PDT"]
[Termination "youngKID won by resignation"]

1. Nf3 {[%clk 0:02:54.6]} 1... Nf6 {[%clk 0:02:59]} 2. c4 {[%clk 0:02:55.5]}
2... c5 {[%clk 0:02:59]} 3. g3 {[%clk 0:02:55.7]} 3... Nc6 {[%clk 0:02:58.9]} 4.
Bg2 {[%clk 0:02:56.6]} 4... g6 {[%clk 0:02:59.6]} 5. O-O {[%clk 0:02:57.3]} 5...
Bg7 {[%clk 0:03:00]} 6. d4 {[%clk 0:02:58.2]} 6... cxd4 {[%clk 0:02:59.9]} 7.
Nxd4 {[%clk 0:02:59.1]} 7... h5 {[%clk 0:03:00.7]} 8. Bg5 {[%clk 0:02:50.7]}
8... h4 {[%clk 0:02:58.8]} 9. Bxh4 {[%clk 0:02:48.5]} 9... Nh7 {[%clk
0:02:51.5]} 10. Bxc6 {[%clk 0:02:36.8]} 10... dxc6 {[%clk 0:02:43.4]} 11. Nf3
{[%clk 0:02:02.2]} 11... Qxd1 {[%clk 0:02:39.9]} 12. Rxd1 {[%clk 0:02:03.1]}
12... Bxb2 {[%clk 0:02:40.4]} 13. Nbd2 {[%clk 0:02:03.8]} 13... Bxa1 {[%clk
0:02:40.2]} 14. Rxa1 {[%clk 0:02:04.7]} 14... f6 {[%clk 0:02:30.1]} 15. g4
{[%clk 0:02:04.9]} 15... Bxg4 {[%clk 0:02:30.7]} 16. Ne4 {[%clk 0:02:04.1]}
16... O-O-O {[%clk 0:02:24.3]} 17. Rb1 {[%clk 0:01:59.7]} 17... Bf5 {[%clk
0:02:17.7]} 18. Nfd2 {[%clk 0:01:55.9]} 18... Rxd2 {[%clk 0:02:17.1]} 19. Nxd2
{[%clk 0:01:55.2]} 19... Bxb1 {[%clk 0:02:18]} 20. Nxb1 {[%clk 0:01:56.1]} 20...
Rd8 {[%clk 0:02:17.5]} 21. Nc3 {[%clk 0:01:56.1]} 21... Rd4 {[%clk 0:02:16.9]}
22. Bg3 {[%clk 0:01:54.7]} 22... Rxc4 {[%clk 0:02:17.3]} 23. Nd1 {[%clk
0:01:54.2]} 23... Rc1 {[%clk 0:02:17]} 0-1

[Event "*** Titled Tuesday Blitz"]
[Site "Chess.com"]
[Date "2021.03.30"]
[Round "6"]
[White "Goryachkina"]
[Black "Djager97"]
[Result "1-0"]
[WhiteElo "2636"]
[BlackElo "2499"]
[TimeControl "180+1"]
[EndTime "11:02:24 PDT"]
[Termination "Goryachkina won by resignation"]

1. e4 {[%clk 0:03:00.3]} 1... e5 {[%clk 0:02:59.9]} 2. Nf3 {[%clk 0:03:00.1]}
2... Nc6 {[%clk 0:03:00.4]} 3. Nc3 {[%clk 0:02:59.6]} 3... Nf6 {[%clk
0:03:00.2]} 4. h3 {[%clk 0:03:00.1]} 4... d5 {[%clk 0:02:59.1]} 5. exd5 {[%clk
0:02:59.4]} 5... Nxd5 {[%clk 0:03:00]} 6. Bb5 {[%clk 0:02:59.1]} 6... Nxc3
{[%clk 0:02:59.6]} 7. bxc3 {[%clk 0:02:59.4]} 7... Bd6 {[%clk 0:02:58.6]} 8. O-O
{[%clk 0:02:58.9]} 8... O-O {[%clk 0:02:57.9]} 9. d4 {[%clk 0:02:58.7]} 9...
exd4 {[%clk 0:02:56.7]} 10. cxd4 {[%clk 0:02:57.3]} 10... h6 {[%clk 0:02:56.6]}
11. c3 {[%clk 0:02:46.7]} 11... Qf6 {[%clk 0:02:54.1]} 12. Re1 {[%clk
0:02:41.4]} 12... Bf5 {[%clk 0:02:53.5]} 13. Bd3 {[%clk 0:02:21.9]} 13... Rad8
{[%clk 0:02:44.4]} 14. Be3 {[%clk 0:02:17.1]} 14... Rfe8 {[%clk 0:02:34.1]} 15.
Bxf5 {[%clk 0:02:16.4]} 15... Qxf5 {[%clk 0:02:34.3]} 16. Rb1 {[%clk 0:02:16.8]}
16... Na5 {[%clk 0:02:28.1]} 17. Qa4 {[%clk 0:02:10.1]} 17... b6 {[%clk
0:02:27.3]} 18. c4 {[%clk 0:02:06.1]} 18... Bf4 {[%clk 0:01:59.7]} 19. Bxf4
{[%clk 0:01:38.9]} 19... Qxf4 {[%clk 0:01:59.7]} 20. Rxe8+ {[%clk 0:01:37.5]}
1-0

[Event "*** Titled Tuesday Blitz"]
[Site "Chess.com"]
[Date "2021.03.30"]
[Round "6"]
[White "kidagent"]
[Black "J36225"]
[Result "0-1"]
[WhiteElo "2317"]
[BlackElo "2489"]
[TimeControl "180+1"]
[EndTime "11:02:39 PDT"]
[Termination "J36225 won by resignation"]

1. e4 {[%clk 0:03:00.9]} 1... e5 {[%clk 0:02:57.7]} 2. Nf3 {[%clk 0:03:00.7]}
2... Nc6 {[%clk 0:02:57.5]} 3. Bb5 {[%clk 0:03:01.3]} 3... a6 {[%clk 0:02:57.2]}
4. Ba4 {[%clk 0:03:01]} 4... Nf6 {[%clk 0:02:56.9]} 5. O-O {[%clk 0:03:00.6]}
5... Nxe4 {[%clk 0:02:56.5]} 6. d4 {[%clk 0:02:58.9]} 6... b5 {[%clk 0:02:55.5]}
7. Bb3 {[%clk 0:02:57.4]} 7... d5 {[%clk 0:02:54.9]} 8. dxe5 {[%clk 0:02:55.4]}
8... Be6 {[%clk 0:02:54.4]} 9. c3 {[%clk 0:02:55.5]} 9... Be7 {[%clk 0:02:52.4]}
10. Nbd2 {[%clk 0:02:51.8]} 10... O-O {[%clk 0:02:47.9]} 11. Re1 {[%clk
0:02:49]} 11... Nc5 {[%clk 0:02:41.5]} 12. Bc2 {[%clk 0:02:47]} 12... d4 {[%clk
0:02:41.1]} 13. Ne4 {[%clk 0:02:35.9]} 13... dxc3 {[%clk 0:02:39.3]} 14. Qxd8
{[%clk 0:02:29]} 14... Raxd8 {[%clk 0:02:36.2]} 15. Nxc3 {[%clk 0:02:27.1]}
15... Nb4 {[%clk 0:02:29.2]} 16. Bb1 {[%clk 0:02:22.9]} 16... Ncd3 {[%clk
0:02:25.9]} 17. Bxd3 {[%clk 0:02:20.7]} 17... Nxd3 {[%clk 0:02:25.8]} 18. Rd1
{[%clk 0:02:15.8]} 18... Bc5 {[%clk 0:02:22.9]} 19. Ne4 {[%clk 0:02:09.1]} 19...
Bb6 {[%clk 0:02:11.4]} 20. Kf1 {[%clk 0:01:51.5]} 20... Bc4 {[%clk 0:02:05.8]}
21. Kg1 {[%clk 0:01:36.3]} 21... Nxf2 {[%clk 0:01:56.6]} 0-1

[Event "*** Titled Tuesday Blitz"]
[Site "Chess.com"]
[Date "2021.03.30"]
[Round "6"]
[White "beto-betun"]
[Black "dennisodessa"]
[Result "1-0"]
[WhiteElo "2224"]
[BlackElo "2316"]
[TimeControl "180+1"]
[EndTime "11:02:52 PDT"]
[Termination "beto-betun won by resignation"]

1. d4 {[%clk 0:03:00.9]} 1... Nf6 {[%clk 0:02:40.4]} 2. Nf3 {[%clk 0:03:00.2]}
2... c5 {[%clk 0:02:39.8]} 3. g3 {[%clk 0:02:59.7]} 3... cxd4 {[%clk 0:02:39.7]}
4. Nxd4 {[%clk 0:03:00.6]} 4... e5 {[%clk 0:02:39.9]} 5. Nb3 {[%clk 0:03:01.2]}
5... Nc6 {[%clk 0:02:39.1]} 6. Bg2 {[%clk 0:03:01.3]} 6... d5 {[%clk 0:02:39.2]}
7. O-O {[%clk 0:03:01.7]} 7... Be6 {[%clk 0:02:36.8]} 8. Bg5 {[%clk 0:02:44.7]}
8... Be7 {[%clk 0:02:36.2]} 9. Nc3 {[%clk 0:02:43.4]} 9... d4 {[%clk 0:02:32.7]}
10. Na4 {[%clk 0:02:43.2]} 10... O-O {[%clk 0:02:31.1]} 11. Nac5 {[%clk
0:02:30.6]} 11... Bxc5 {[%clk 0:02:27.2]} 12. Nxc5 {[%clk 0:02:31.5]} 12... Qe7
{[%clk 0:02:27]} 13. Nxe6 {[%clk 0:02:28.9]} 13... Qxe6 {[%clk 0:02:27.9]} 14.
c3 {[%clk 0:02:21.1]} 14... dxc3 {[%clk 0:02:26.2]} 15. bxc3 {[%clk 0:02:22]}
15... Rac8 {[%clk 0:02:25.6]} 16. Qa4 {[%clk 0:02:15.3]} 16... b6 {[%clk
0:02:23.4]} 17. Rfd1 {[%clk 0:02:11.3]} 17... Na5 {[%clk 0:02:22.9]} 18. Bxf6
{[%clk 0:01:55.1]} 18... Qxf6 {[%clk 0:02:23.8]} 19. Rd7 {[%clk 0:01:55.4]}
19... Rxc3 {[%clk 0:02:09.7]} 20. Rxa7 {[%clk 0:01:49.4]} 20... h6 {[%clk
0:02:00.6]} 21. Rd1 {[%clk 0:01:44.7]} 21... Rfc8 {[%clk 0:01:59.6]} 22. Bd5
{[%clk 0:01:40.2]} 22... Rc1 {[%clk 0:01:55]} 1-0

[Event "*** Titled Tuesday Blitz"]
[Site "Chess.com"]
[Date "2021.03.30"]
[Round "6"]
[White "jraosam"]
[Black "Fraler15"]
[Result "0-1"]
[WhiteElo "1848"]
[BlackElo "2248"]
[TimeControl "180+1"]
[EndTime "11:02:55 PDT"]
[Termination "Fraler15 won by resignation"]

1. c4 {[%clk 0:03:00.9]} 1... e5 {[%clk 0:02:59.7]} 2. Nc3 {[%clk 0:03:01.1]}
2... Nf6 {[%clk 0:02:59.5]} 3. Nf3 {[%clk 0:03:01.3]} 3... Nc6 {[%clk
0:02:58.4]} 4. e3 {[%clk 0:03:01.5]} 4... Bb4 {[%clk 0:02:58.3]} 5. d4 {[%clk
0:03:01.6]} 5... e4 {[%clk 0:02:49.9]} 6. Nd2 {[%clk 0:03:01.1]} 6... Bxc3
{[%clk 0:02:49.6]} 7. bxc3 {[%clk 0:03:00.9]} 7... d6 {[%clk 0:02:47.7]} 8. g3
{[%clk 0:02:40.2]} 8... O-O {[%clk 0:02:43.1]} 9. Bg2 {[%clk 0:02:39.9]} 9...
Bg4 {[%clk 0:02:41.8]} 10. Qc2 {[%clk 0:02:38.5]} 10... Re8 {[%clk 0:02:35.3]}
11. Nxe4 {[%clk 0:02:37]} 11... Bf5 {[%clk 0:02:34.3]} 12. Nxf6+ {[%clk
0:02:35.7]} 12... Qxf6 {[%clk 0:02:35.2]} 13. e4 {[%clk 0:02:26.8]} 13... Bxe4
{[%clk 0:02:21]} 14. Bxe4 {[%clk 0:02:26.4]} 14... Qf3 {[%clk 0:02:20.4]} 15.
O-O {[%clk 0:02:22.9]} 15... Rxe4 {[%clk 0:02:19.3]} 16. Be3 {[%clk 0:02:20.7]}
16... Rae8 {[%clk 0:02:16.7]} 17. Rab1 {[%clk 0:02:18.3]} 17... b6 {[%clk
0:02:13.1]} 18. Qa4 {[%clk 0:02:11.1]} 18... Na5 {[%clk 0:02:10.6]} 19. c5
{[%clk 0:02:07.7]} 19... dxc5 {[%clk 0:02:09.4]} 20. dxc5 {[%clk 0:02:07.7]}
20... Rxa4 {[%clk 0:02:09.2]} 0-1

[Event "*** Titled Tuesday Blitz"]
[Site "Chess.com"]
[Date "2021.03.30"]
[Round "6"]
[White "WonderChampion"]
[Black "SHIVACalypso"]
[Result "0-1"]
[WhiteElo "2113"]
[BlackElo "2399"]
[TimeControl "180+1"]
[EndTime "11:03:16 PDT"]
[Termination "SHIVACalypso won by resignation"]

1. d4 {[%clk 0:03:00.9]} 1... e6 {[%clk 0:02:59.9]} 2. e4 {[%clk 0:03:00.4]}
2... d5 {[%clk 0:02:59]} 3. Nc3 {[%clk 0:02:57]} 3... Nf6 {[%clk 0:02:58.3]} 4.
Bg5 {[%clk 0:02:55.4]} 4... dxe4 {[%clk 0:02:58.1]} 5. Nxe4 {[%clk 0:02:54.3]}
5... Be7 {[%clk 0:02:58.4]} 6. Bxf6 {[%clk 0:02:50.3]} 6... gxf6 {[%clk
0:02:58.5]} 7. c3 {[%clk 0:02:49.8]} 7... f5 {[%clk 0:02:56.3]} 8. Nd2 {[%clk
0:02:47.7]} 8... c5 {[%clk 0:02:56.1]} 9. Ngf3 {[%clk 0:02:46]} 9... Nc6 {[%clk
0:02:54.9]} 10. dxc5 {[%clk 0:02:40.5]} 10... Bxc5 {[%clk 0:02:53.7]} 11. Bb5
{[%clk 0:02:34.3]} 11... Bd7 {[%clk 0:02:53.1]} 12. Bxc6 {[%clk 0:02:28.3]}
12... Bxc6 {[%clk 0:02:54]} 13. O-O {[%clk 0:02:25.5]} 13... Rg8 {[%clk
0:02:46.7]} 14. Kh1 {[%clk 0:02:23.3]} 14... Qf6 {[%clk 0:02:41.2]} 15. Nb3
{[%clk 0:02:19.8]} 15... Bb6 {[%clk 0:02:36]} 16. a4 {[%clk 0:02:06.8]} 16...
Rd8 {[%clk 0:02:05.2]} 17. Qe2 {[%clk 0:02:02]} 17... Qh6 {[%clk 0:01:49]} 18.
Rfd1 {[%clk 0:01:55.3]} 18... Rd5 {[%clk 0:01:40]} 19. Rxd5 {[%clk 0:01:53]}
19... Bxd5 {[%clk 0:01:40.9]} 20. Nbd2 {[%clk 0:01:45]} 20... Bc7 {[%clk
0:01:35.6]} 21. Re1 {[%clk 0:01:42.3]} 21... Bxh2 {[%clk 0:01:19.1]} 22. Qe3
{[%clk 0:01:32.8]} 22... Bf4+ {[%clk 0:01:17.9]} 0-1